Workbook

Sheet Indice
A9: CALCULADORA PTU 2022 PARA EL EJERCICIO 2022.
A13: Indice | B13: NOMBRE O RAZÓN SOCIAL | D13: MI EMPRESA, S.A. DE C.V | K13: CALCULO DE FACTORES
A14: PTU | B14: EJERCICIO FISCAL | D14: 2022
A15: ISR | B15: UMA | D15: 103.74 | J15: Factor por Dias | L15: Factor por Sueldos
B16: SALARIO MINIMO VIGENTE | D16: 172.87 | J16: Factor | K16: =+K17/K18 -> 29.51389 | L16: Factor | M16: =+M17/M18 -> 0.27260
B17: P.T.U. A REPARTIR | D17: 85,000.00 | J17: PTU a repartir | K17: =+Indice!D17/2 -> 42,500.00 | L17: PTU a repartir | M17: =+Indice!D17/2 -> 42,500.00
B18: TOPE SALARIAL | D18: 95,000.00 | E18: <---- No incluir el 20% adicional | J18: Días trabajados | K18: =+PTU!S37 -> 1,440.00 | L18: Sueldos devengados | M18: =+PTU!U37 -> 155,906.88
B19: MONTO MÁXIMO* | D19: =+D18*1.2 -> 114,000.00
B24: *Artículo 127, Fracción II
B25: Los demás trabajadores de confianza participarán en las utilidades de las empresas, pero si el salario que perciben es mayor del que corresponda al trabajador sindicalizado de más alto salario dentro de la empresa, o a falta de éste al trabajador de planta con la misma característica, se considerará este salario aumentado en un veinte por ciento, como salario máximo.

Sheet PTU
A1: MI EMPRESA, S.A. DE C.V.
A2: =+("CALCULADORA DE PTU EJERCICIO: "&E4) -> CALCULADORA DE PTU EJERCICIO: 2022
D3: TOPE SALARIAL | E3: =+Indice!D18 -> 95,000.00 | F3: 1.20 | G3: =+Indice!D19 -> 114,000.00
D4: EJERCICIO: | E4: =+Indice!D14 -> 2022 | F4: P.T.U. A REPARTIR | G4: =+Indice!D17 -> 85,000.00 | N4: UMA 2022 | O4: =+Indice!D15 -> 103.74 | V4: =+PTU!G3 -> 114,000.00 | Y4: =+O4*15 -> 1556.1
A5: Clave | B5: Nombre completo | C5: APLICA PTU | D5: SUELDO MENSUAL | E5: ISR RETENIDO EN EL MES ANTERIOR | F5: SUBSIDIO PARA EL EMPLEO APLICADO | G5: DETERMINACIÓN 3 MES DE SALARIO | H5: PTU PAGADA 2018 | I5: PTU PAGADA 2019 | J5: PTU PAGADA 2020 | K5: PROMEDIO PTU PAGADA | L5: MONTO MAS FAVORABLE | M5: INICIO DE EJERCICIO | N5: FIN DE EJERCICIO | O5: DíAS DEL AÑO | P5: INC. POR ENFERMEDAD GRAL. | Q5: PERMISOS SIN GOCE DE SUELDO | R5: AUSENCIAS INJUSTIFICADS | S5: DIAS EFECTIVAMENTE LABORADOS | T5: TOTAL DE INGRESOS DEL AÑO 2020 | U5: TOPE SALARIAL | V5: Participación por Sueldo | W5: Participación por días | X5: TOTAL A RECIBIR | Y5: PARTE GRAVADA | Z5: PARTE EXENTA | AA5: ISR | AB5: NETO A RECIBIR | AC5: STATUS
A6: 1 | B6: TRABAJADOR 1 | C6: SI | D6: 17,500.00 | E6: 2,190.04 | G6: =+D6*3 -> 52,500.00 | H6: 6,000.00 | I6: 7,000.00 | J6: 9,000.00 | K6: =+IFERROR(AVERAGE(H6:J6),0) -> 7,333.33 | L6: =+IF(G6>=K6,G6,K6) -> 52,500.00 | M6: 2021-01-01 | N6: 2021-12-31 | O6: =+IF(C6="SI",(IF(((N6-M6)+1)>60,((N6-M6)+1),0)),0) -> 365 | P6: 20 | S6: =+O6-P6-Q6-R6 -> 345 | T6: =+L6 -> 52,500.00 | U6: =IF($C6="SI",IF(S6>=60,IF($V$4<=0,T6,IF(T6>PTU!$V$4,PTU!$V$4,T6)),0),0) -> 52,500 | V6: =+IF(S6>=60,U6*Indice!$M$16,0) -> 14,311 | W6: =+IF(S6>=60,S6*Indice!$K$16,0) -> 10,182 | X6: =+V6+W6 -> 24,494 | Y6: =+IF($Y$4<X6,X6-$Y$4,0) -> 22,938 | Z6: =+X6-Y6 -> 1,556 | AA6: =+ISR!N2 -> 3,458 | AB6: =+X6-AA6 -> 21,035 | AC6: BAJA
A7: 2 | B7: TRABAJADOR 2 | C7: SI | D7: 15,000.00 | E7: 1,762.84 | G7: =+D7*3 -> 45,000.00 | H7: 6,000.00 | I7: 7,000.00 | J7: 9,000.00 | K7: =+IFERROR(AVERAGE(H7:J7),0) -> 7,333.33 | L7: =+IF(G7>=K7,G7,K7) -> 45,000.00 | M7: 2021-01-01 | N7: 2021-12-31 | O7: 365 | S7: =+O7-P7-Q7-R7 -> 365 | T7: =+L7 -> 45,000.00 | U7: =IF($C7="SI",IF(S7>=60,IF($V$4<=0,T7,IF(T7>PTU!$V$4,PTU!$V$4,T7)),0),0) -> 45,000 | V7: =+IF(S7>=60,U7*Indice!$M$16,0) -> 12,267 | W7: =+IF(S7>=60,S7*Indice!$K$16,0) -> 10,773 | X7: =+V7+W7 -> 23,040 | Y7: =+IF($Y$4<X7,X7-$Y$4,0) -> 21,483 | Z7: =+X7-Y7 -> 1,556 | AA7: =+ISR!N3 -> 1,865 | AB7: =+X7-AA7 -> 21,174 | AC7: ALTA
A8: 3 | B8: TRABAJADOR 3 | C8: SI | D8: =7234.48*2 -> 14,468.96 | E8: 1,649.41 | G8: 43,406.88 | H8: 6,000.00 | I8: 7,000.00 | J8: 9,000.00 | K8: 7,333.33 | L8: 43,406.88 | M8: 2021-01-01 | N8: 2021-12-31 | O8: 365 | S8: 365 | T8: 43,406.88 | U8: =IF($C8="SI",IF(S8>=60,IF($V$4<=0,T8,IF(T8>PTU!$V$4,PTU!$V$4,T8)),0),0) -> 43,407 | V8: =+IF(S8>=60,U8*Indice!$M$16,0) -> 11,833 | W8: =+IF(S8>=60,S8*Indice!$K$16,0) -> 10,773 | X8: 22,605 | Y8: 21,049 | Z8: 1,556 | AA8: =+ISR!N4 -> 1,773 | AB8: 20,833 | AC8: ALTA
A9: 4 | B9: TRABAJADOR 4 | C9: SI | D9: 5,000.00 | E9: 291.13 | G9: 15,000.00 | H9: 6,000.00 | I9: 7,000.00 | J9: 9,000.00 | K9: =+IFERROR(AVERAGE(H9:J9),0) -> 7,333.33 | L9: 15,000.00 | M9: 2021-01-01 | N9: 2021-12-31 | O9: 365 | S9: 365 | T9: 15,000.00 | U9: =IF($C9="SI",IF(S9>=60,IF($V$4<=0,T9,IF(T9>PTU!$V$4,PTU!$V$4,T9)),0),0) -> 15,000 | V9: =+IF(S9>=60,U9*Indice!$M$16,0) -> 4,089 | W9: =+IF(S9>=60,S9*Indice!$K$16,0) -> 10,773 | X9: 14,862 | Y9: 13,305 | Z9: 1,556 | AA9: =+ISR!N5 -> 797 | AB9: 14,065 | AC9: ALTA
A10: 5 | B10: TRABAJADOR 5 | G10: 0 | K10: =+IFERROR(AVERAGE(H10:J10),0) -> 0 | L10: 0 | M10: 2021-01-01 | N10: 2021-12-31 | O10: 0 | S10: 0 | T10: 0 | U10: =IF($C10="SI",IF(S10>=60,IF($V$4<=0,T10,IF(T10>PTU!$V$4,PTU!$V$4,T10)),0),0) -> 0 | V10: =+IF(S10>=60,U10*Indice!$M$16,0) -> 0 | W10: =+IF(S10>=60,S10*Indice!$K$16,0) -> 0 | X10: 0 | Y10: 0 | Z10: 0 | AA10: =+ISR!N6 -> 0 | AB10: 0 | AC10: ALTA
A11: 6 | B11: TRABAJADOR 6 | G11: 0 | K11: 0 | L11: 0 | M11: 2021-01-01 | N11: 2021-12-31 | O11: 0 | S11: 0 | T11: 0 | U11: =IF($C11="SI",IF(S11>=60,IF($V$4<=0,T11,IF(T11>PTU!$V$4,PTU!$V$4,T11)),0),0) -> 0 | V11: =+IF(S11>=60,U11*Indice!$M$16,0) -> 0 | W11: =+IF(S11>=60,S11*Indice!$K$16,0) -> 0 | X11: 0 | Y11: 0 | Z11: 0 | AA11: =+ISR!N7 -> 0 | AB11: 0 | AC11: ALTA
A12: 7 | B12: TRABAJADOR 7 | G12: 0 | K12: 0 | L12: 0 | M12: 2021-01-01 | N12: 2021-12-31 | O12: 0 | S12: 0 | T12: 0 | U12: =IF($C12="SI",IF(S12>=60,IF($V$4<=0,T12,IF(T12>PTU!$V$4,PTU!$V$4,T12)),0),0) -> 0 | V12: =+IF(S12>=60,U12*Indice!$M$16,0) -> 0 | W12: =+IF(S12>=60,S12*Indice!$K$16,0) -> 0 | X12: 0 | Y12: 0 | Z12: 0 | AA12: =+ISR!N8 -> 0 | AB12: 0 | AC12: ALTA
A13: 8 | B13: TRABAJADOR 8 | G13: 0 | K13: 0 | L13: 0 | M13: 2021-01-01 | N13: 2021-12-31 | O13: 0 | S13: 0 | T13: 0 | U13: =IF($C13="SI",IF(S13>=60,IF($V$4<=0,T13,IF(T13>PTU!$V$4,PTU!$V$4,T13)),0),0) -> 0 | V13: =+IF(S13>=60,U13*Indice!$M$16,0) -> 0 | W13: =+IF(S13>=60,S13*Indice!$K$16,0) -> 0 | X13: 0 | Y13: 0 | Z13: 0 | AA13: =+ISR!N9 -> 0 | AB13: 0 | AC13: BAJA
A14: 9 | B14: TRABAJADOR 9 | G14: 0 | K14: 0 | L14: 0 | M14: 2021-01-01 | N14: 2021-12-31 | O14: 0 | S14: 0 | T14: 0 | U14: =IF($C14="SI",IF(S14>=60,IF($V$4<=0,T14,IF(T14>PTU!$V$4,PTU!$V$4,T14)),0),0) -> 0 | V14: =+IF(S14>=60,U14*Indice!$M$16,0) -> 0 | W14: =+IF(S14>=60,S14*Indice!$K$16,0) -> 0 | X14: 0 | Y14: 0 | Z14: 0 | AA14: =+ISR!N10 -> 0 | AB14: 0 | AC14: ALTA
A15: 10 | B15: TRABAJADOR 10 | G15: 0 | K15: 0 | L15: 0 | M15: 2021-01-01 | N15: 2021-12-31 | O15: 0 | S15: 0 | T15: 0 | U15: =IF($C15="SI",IF(S15>=60,IF($V$4<=0,T15,IF(T15>PTU!$V$4,PTU!$V$4,T15)),0),0) -> 0 | V15: =+IF(S15>=60,U15*Indice!$M$16,0) -> 0 | W15: =+IF(S15>=60,S15*Indice!$K$16,0) -> 0 | X15: 0 | Y15: 0 | Z15: 0 | AA15: =+ISR!N11 -> 0 | AB15: 0 | AC15: ALTA
A16: 11 | B16: TRABAJADOR 11 | G16: 0 | K16: 0 | L16: 0 | M16: 2021-01-01 | N16: 2021-12-31 | O16: 0 | S16: 0 | T16: 0 | U16: =IF($C16="SI",IF(S16>=60,IF($V$4<=0,T16,IF(T16>PTU!$V$4,PTU!$V$4,T16)),0),0) -> 0 | V16: =+IF(S16>=60,U16*Indice!$M$16,0) -> 0 | W16: =+IF(S16>=60,S16*Indice!$K$16,0) -> 0 | X16: 0 | Y16: 0 | Z16: 0 | AA16: =+ISR!N12 -> 0 | AB16: 0 | AC16: ALTA
A17: 12 | B17: TRABAJADOR 12 | G17: 0 | K17: 0 | L17: 0 | M17: 2021-01-01 | N17: 2021-12-31 | O17: 0 | S17: 0 | T17: 0 | U17: =IF($C17="SI",IF(S17>=60,IF($V$4<=0,T17,IF(T17>PTU!$V$4,PTU!$V$4,T17)),0),0) -> 0 | V17: =+IF(S17>=60,U17*Indice!$M$16,0) -> 0 | W17: =+IF(S17>=60,S17*Indice!$K$16,0) -> 0 | X17: 0 | Y17: 0 | Z17: 0 | AA17: =+ISR!N13 -> 0 | AB17: 0 | AC17: ALTA
A18: 13 | B18: TRABAJADOR 13 | G18: 0 | K18: 0 | L18: 0 | M18: 2021-01-01 | N18: 2021-12-31 | O18: 0 | S18: 0 | T18: 0 | U18: =IF($C18="SI",IF(S18>=60,IF($V$4<=0,T18,IF(T18>PTU!$V$4,PTU!$V$4,T18)),0),0) -> 0 | V18: =+IF(S18>=60,U18*Indice!$M$16,0) -> 0 | W18: =+IF(S18>=60,S18*Indice!$K$16,0) -> 0 | X18: 0 | Y18: 0 | Z18: 0 | AA18: =+ISR!N14 -> 0 | AB18: 0 | AC18: ALTA
A19: 14 | B19: TRABAJADOR 14 | G19: 0 | K19: 0 | L19: 0 | M19: 2021-01-01 | N19: 2021-12-31 | O19: 0 | S19: 0 | T19: 0 | U19: =IF($C19="SI",IF(S19>=60,IF($V$4<=0,T19,IF(T19>PTU!$V$4,PTU!$V$4,T19)),0),0) -> 0 | V19: =+IF(S19>=60,U19*Indice!$M$16,0) -> 0 | W19: =+IF(S19>=60,S19*Indice!$K$16,0) -> 0 | X19: 0 | Y19: 0 | Z19: 0 | AA19: =+ISR!N15 -> 0 | AB19: 0 | AC19: BAJA
A20: 15 | B20: TRABAJADOR 15 | G20: 0 | K20: 0 | L20: 0 | M20: 2021-01-01 | N20: 2021-12-31 | O20: 0 | S20: 0 | T20: 0 | U20: =IF($C20="SI",IF(S20>=60,IF($V$4<=0,T20,IF(T20>PTU!$V$4,PTU!$V$4,T20)),0),0) -> 0 | V20: =+IF(S20>=60,U20*Indice!$M$16,0) -> 0 | W20: =+IF(S20>=60,S20*Indice!$K$16,0) -> 0 | X20: 0 | Y20: 0 | Z20: 0 | AA20: =+ISR!N16 -> 0 | AB20: 0 | AC20: ALTA
A21: 16 | B21: TRABAJADOR 16 | G21: 0 | K21: 0 | L21: 0 | M21: 2021-01-01 | N21: 2021-12-31 | O21: 0 | S21: 0 | T21: 0 | U21: =IF($C21="SI",IF(S21>=60,IF($V$4<=0,T21,IF(T21>PTU!$V$4,PTU!$V$4,T21)),0),0) -> 0 | V21: =+IF(S21>=60,U21*Indice!$M$16,0) -> 0 | W21: =+IF(S21>=60,S21*Indice!$K$16,0) -> 0 | X21: 0 | Y21: 0 | Z21: 0 | AA21: =+ISR!N17 -> 0 | AB21: 0 | AC21: ALTA
A22: 17 | B22: TRABAJADOR 17 | G22: 0 | K22: 0 | L22: 0 | M22: 2021-01-01 | N22: 2021-12-31 | O22: 0 | S22: 0 | T22: 0 | U22: =IF($C22="SI",IF(S22>=60,IF($V$4<=0,T22,IF(T22>PTU!$V$4,PTU!$V$4,T22)),0),0) -> 0 | V22: =+IF(S22>=60,U22*Indice!$M$16,0) -> 0 | W22: =+IF(S22>=60,S22*Indice!$K$16,0) -> 0 | X22: 0 | Y22: 0 | Z22: 0 | AA22: =+ISR!N18 -> 0 | AB22: 0 | AC22: BAJA
A23: 18 | B23: TRABAJADOR 18 | G23: 0 | K23: 0 | L23: 0 | M23: 2021-01-01 | N23: 2021-12-31 | O23: 0 | S23: 0 | T23: 0 | U23: =IF($C23="SI",IF(S23>=60,IF($V$4<=0,T23,IF(T23>PTU!$V$4,PTU!$V$4,T23)),0),0) -> 0 | V23: =+IF(S23>=60,U23*Indice!$M$16,0) -> 0 | W23: =+IF(S23>=60,S23*Indice!$K$16,0) -> 0 | X23: 0 | Y23: 0 | Z23: 0 | AA23: =+ISR!N19 -> 0 | AB23: 0 | AC23: BAJA
A24: 19 | B24: TRABAJADOR 19 | G24: 0 | K24: 0 | L24: 0 | M24: 2021-01-01 | N24: 2021-12-31 | O24: 0 | S24: 0 | T24: 0 | U24: =IF($C24="SI",IF(S24>=60,IF($V$4<=0,T24,IF(T24>PTU!$V$4,PTU!$V$4,T24)),0),0) -> 0 | V24: =+IF(S24>=60,U24*Indice!$M$16,0) -> 0 | W24: =+IF(S24>=60,S24*Indice!$K$16,0) -> 0 | X24: 0 | Y24: 0 | Z24: 0 | AA24: =+ISR!N20 -> 0 | AB24: 0 | AC24: ALTA
A25: 20 | B25: TRABAJADOR 20 | G25: 0 | K25: 0 | L25: 0 | M25: 2021-01-01 | N25: 2021-12-31 | O25: 0 | S25: 0 | T25: 0 | U25: =IF($C25="SI",IF(S25>=60,IF($V$4<=0,T25,IF(T25>PTU!$V$4,PTU!$V$4,T25)),0),0) -> 0 | V25: =+IF(S25>=60,U25*Indice!$M$16,0) -> 0 | W25: =+IF(S25>=60,S25*Indice!$K$16,0) -> 0 | X25: 0 | Y25: 0 | Z25: 0 | AA25: =+ISR!N21 -> 0 | AB25: 0 | AC25: BAJA
A26: 21 | B26: TRABAJADOR 21 | G26: 0 | K26: 0 | L26: 0 | M26: 2021-01-01 | N26: 2021-12-31 | O26: 0 | S26: 0 | T26: 0 | U26: =IF($C26="SI",IF(S26>=60,IF($V$4<=0,T26,IF(T26>PTU!$V$4,PTU!$V$4,T26)),0),0) -> 0 | V26: =+IF(S26>=60,U26*Indice!$M$16,0) -> 0 | W26: =+IF(S26>=60,S26*Indice!$K$16,0) -> 0 | X26: 0 | Y26: 0 | Z26: 0 | AA26: =+ISR!N22 -> 0 | AB26: 0 | AC26: BAJA
A27: 22 | B27: TRABAJADOR 22 | G27: 0 | K27: 0 | L27: 0 | M27: 2021-01-01 | N27: 2021-12-31 | O27: 0 | S27: 0 | T27: 0 | U27: =IF($C27="SI",IF(S27>=60,IF($V$4<=0,T27,IF(T27>PTU!$V$4,PTU!$V$4,T27)),0),0) -> 0 | V27: =+IF(S27>=60,U27*Indice!$M$16,0) -> 0 | W27: =+IF(S27>=60,S27*Indice!$K$16,0) -> 0 | X27: 0 | Y27: 0 | Z27: 0 | AA27: =+ISR!N23 -> 0 | AB27: 0 | AC27: ALTA
A28: 23 | B28: TRABAJADOR 23 | G28: 0 | K28: 0 | L28: 0 | M28: 2021-01-01 | N28: 2021-12-31 | O28: 0 | S28: 0 | T28: 0 | U28: =IF($C28="SI",IF(S28>=60,IF($V$4<=0,T28,IF(T28>PTU!$V$4,PTU!$V$4,T28)),0),0) -> 0 | V28: =+IF(S28>=60,U28*Indice!$M$16,0) -> 0 | W28: =+IF(S28>=60,S28*Indice!$K$16,0) -> 0 | X28: 0 | Y28: 0 | Z28: 0 | AA28: =+ISR!N24 -> 0 | AB28: 0 | AC28: ALTA
A29: 24 | B29: TRABAJADOR 24 | G29: 0 | K29: 0 | L29: 0 | M29: 2021-01-01 | N29: 2021-12-31 | O29: 0 | S29: 0 | T29: 0 | U29: =IF($C29="SI",IF(S29>=60,IF($V$4<=0,T29,IF(T29>PTU!$V$4,PTU!$V$4,T29)),0),0) -> 0 | V29: =+IF(S29>=60,U29*Indice!$M$16,0) -> 0 | W29: =+IF(S29>=60,S29*Indice!$K$16,0) -> 0 | X29: 0 | Y29: 0 | Z29: 0 | AA29: =+ISR!N25 -> 0 | AB29: 0 | AC29: BAJA
A30: 25 | B30: TRABAJADOR 25 | G30: 0 | K30: 0 | L30: 0 | M30: 2021-01-01 | N30: 2021-12-31 | O30: 0 | S30: 0 | T30: 0 | U30: =IF($C30="SI",IF(S30>=60,IF($V$4<=0,T30,IF(T30>PTU!$V$4,PTU!$V$4,T30)),0),0) -> 0 | V30: =+IF(S30>=60,U30*Indice!$M$16,0) -> 0 | W30: =+IF(S30>=60,S30*Indice!$K$16,0) -> 0 | X30: 0 | Y30: 0 | Z30: 0 | AA30: =+ISR!N26 -> 0 | AB30: 0 | AC30: ALTA
A31: 26 | B31: TRABAJADOR 26 | G31: 0 | K31: 0 | L31: 0 | M31: 2021-01-01 | N31: 2021-12-31 | O31: 0 | S31: 0 | T31: 0 | U31: =IF($C31="SI",IF(S31>=60,IF($V$4<=0,T31,IF(T31>PTU!$V$4,PTU!$V$4,T31)),0),0) -> 0 | V31: =+IF(S31>=60,U31*Indice!$M$16,0) -> 0 | W31: =+IF(S31>=60,S31*Indice!$K$16,0) -> 0 | X31: 0 | Y31: 0 | Z31: 0 | AA31: =+ISR!N27 -> 0 | AB31: 0 | AC31: BAJA
A32: 27 | B32: TRABAJADOR 27 | G32: 0 | K32: 0 | L32: 0 | M32: 2021-01-01 | N32: 2021-12-31 | O32: 0 | S32: 0 | T32: 0 | U32: =IF($C32="SI",IF(S32>=60,IF($V$4<=0,T32,IF(T32>PTU!$V$4,PTU!$V$4,T32)),0),0) -> 0 | V32: =+IF(S32>=60,U32*Indice!$M$16,0) -> 0 | W32: =+IF(S32>=60,S32*Indice!$K$16,0) -> 0 | X32: 0 | Y32: 0 | Z32: 0 | AA32: =+ISR!N28 -> 0 | AB32: 0 | AC32: BAJA
A33: 28 | B33: TRABAJADOR 28 | G33: 0 | K33: 0 | L33: 0 | M33: 2021-01-01 | N33: 2021-12-31 | O33: 0 | S33: 0 | T33: 0 | U33: =IF($C33="SI",IF(S33>=60,IF($V$4<=0,T33,IF(T33>PTU!$V$4,PTU!$V$4,T33)),0),0) -> 0 | V33: =+IF(S33>=60,U33*Indice!$M$16,0) -> 0 | W33: =+IF(S33>=60,S33*Indice!$K$16,0) -> 0 | X33: 0 | Y33: 0 | Z33: 0 | AA33: =+ISR!N29 -> 0 | AB33: 0 | AC33: ALTA
A34: 29 | B34: TRABAJADOR 29 | G34: 0 | K34: 0 | L34: 0 | M34: 2021-01-01 | N34: 2021-12-31 | O34: 0 | S34: 0 | T34: 0 | U34: =IF($C34="SI",IF(S34>=60,IF($V$4<=0,T34,IF(T34>PTU!$V$4,PTU!$V$4,T34)),0),0) -> 0 | V34: =+IF(S34>=60,U34*Indice!$M$16,0) -> 0 | W34: =+IF(S34>=60,S34*Indice!$K$16,0) -> 0 | X34: 0 | Y34: 0 | Z34: 0 | AA34: =+ISR!N30 -> 0 | AB34: 0 | AC34: ALTA
A35: 30 | B35: TRABAJADOR 30 | G35: 0 | K35: 0 | L35: 0 | M35: 2021-01-01 | N35: 2021-12-31 | O35: 0 | S35: 0 | T35: 0 | U35: =IF($C35="SI",IF(S35>=60,IF($V$4<=0,T35,IF(T35>PTU!$V$4,PTU!$V$4,T35)),0),0) -> 0 | V35: =+IF(S35>=60,U35*Indice!$M$16,0) -> 0 | W35: =+IF(S35>=60,S35*Indice!$K$16,0) -> 0 | X35: 0 | Y35: 0 | Z35: 0 | AA35: =+ISR!N31 -> 0 | AB35: 0 | AC35: ALTA
O37: =+SUM(O6:O35) -> 1460 | S37: =+SUMIF($C$6:$C$35,"SI",$S$6:$S$35) -> 1,440 | T37: =+SUM(T6:T35) -> 155,906.88 | U37: =+SUMIF($C$6:$C$35,"SI",$U$6:$U$35) -> 155,907 | V37: =+SUM(V6:V35) -> 42,500 | W37: 42,500 | X37: 85,000 | Y37: 78,776 | Z37: 6,224 | AA37: 7,893 | AB37: 77,107
W38: =+V37+W37 -> 85,000.00
W39: =+Indice!D17 -> 85,000.00
V40: DIFERENCIA | W40: =+W38-W39 -> 0

Sheet ISR
A1: NOMBRE | B1: PTU | C1: Indice | D1: TOTAL | E1: LIMITE INFERIOR | F1: EXCEDENTE DEL LIMITE INFERIOR | G1: % PARA APLICARSE | H1: IMPUESTO MARGINAL | I1: CUOTA FIJA | J1: IMPUESTO CAUSADO | K1: IMPUESTO | L1: IMPUESTO ART. 174 | M1: FACTOR | N1: IMPUESTO A RETENER | P1: Tarifa mensual
A2: =+PTU!B6 -> TRABAJADOR 1 | B2: =+PTU!Y6 -> 22,937.62 | C2: =+B2/365*30.4 -> 1,910.42 | D2: =+PTU!D6+C2 -> 19,410.42 | E2: =+IFERROR(VLOOKUP(D2,Tarifa_mensual,1),0) -> 15,487.72 | F2: =+D2-E2 -> 3,922.70 | G2: =+IFERROR(VLOOKUP(D2,Tarifa_mensual,4),0) -> 21.36% | H2: =+F2*G2 -> 837.89 | I2: =+IFERROR(VLOOKUP(D2,Tarifa_mensual,3),0) -> 1,640.18 | J2: =+H2+I2 -> 2,478.07 | K2: =+J2-PTU!F6 -> 2,478.07 | L2: =+IF((K2-PTU!E6)<1,0,(K2-PTU!E6)) -> 288.03 | M2: =IFERROR((L2/C2),0) -> 0.15 | N2: =+IF(K2>1,B2*M2,0) -> 3,458.29 | P2: Límite Inferior | Q2: Límite Superior | R2: Cuota Fija | S2: % sobre excente de límite inferior
A3: =+PTU!B7 -> TRABAJADOR 2 | B3: =+PTU!Y7 -> 21,483.41 | C3: =+B3/365*30.4 -> 1,789.30 | D3: =+PTU!D7+C3 -> 16,789.30 | E3: 15,487.72 | F3: =+D3-E3 -> 1,301.58 | G3: 21.36% | H3: =+F3*G3 -> 278.02 | I3: 1,640.18 | J3: =+H3+I3 -> 1,918.20 | K3: =+J3-PTU!F7 -> 1,918.20 | L3: =+IF((K3-PTU!E7)<1,0,(K3-PTU!E7)) -> 155.36 | M3: 0.09 | N3: =+IF(K3>1,B3*M3,0) -> 1,865.37 | P3: 0.01 | Q3: 746.04 | R3: 0 | S3: 1.92%
A4: =+PTU!B8 -> TRABAJADOR 3 | B4: =+PTU!Y8 -> 21,049.12 | C4: 1,753.13 | D4: =+PTU!D8+C4 -> 16,222.09 | E4: 15,487.72 | F4: 734.37 | G4: 21.36% | H4: 156.86 | I4: 1,640.18 | J4: 1,797.04 | K4: =+J4-PTU!F8 -> 1,797.04 | L4: =+IF((K4-PTU!E8)<1,0,(K4-PTU!E8)) -> 147.64 | M4: 0.08 | N4: 1,772.61 | P4: 746.05 | Q4: 6,332.05 | R4: 14.32 | S4: 6.40%
A5: =+PTU!B9 -> TRABAJADOR 4 | B5: =+PTU!Y9 -> 13,305.45 | C5: 1,108.18 | D5: =+PTU!D9+C5 -> 6,108.18 | E5: 746.05 | F5: 5,362.13 | G5: 6.40% | H5: 343.18 | I5: 14.32 | J5: 357.50 | K5: =+J5-PTU!F9 -> 357.50 | L5: =+IF((K5-PTU!E9)<1,0,(K5-PTU!E9)) -> 66.37 | M5: 0.06 | N5: 796.83 | P5: 6,332.06 | Q5: 11,128.01 | R5: 371.83 | S5: 10.88%
A6: =+PTU!B10 -> TRABAJADOR 5 | B6: =+PTU!Y10 -> 0 | C6: 0 | D6: =+PTU!D10+C6 -> 0 | E6: 0 | F6: 0 | G6: 0.00% | H6: 0 | I6: 0 | J6: 0 | K6: =+J6-PTU!F10 -> 0 | L6: =+IF((K6-PTU!E10)<1,0,(K6-PTU!E10)) -> 0 | M6: 0 | N6: 0 | P6: 11,128.02 | Q6: 12,935.82 | R6: 893.63 | S6: 16.00%
A7: =+PTU!B11 -> TRABAJADOR 6 | B7: =+PTU!Y11 -> 0 | C7: 0 | D7: =+PTU!D11+C7 -> 0 | E7: 0 | F7: 0 | G7: 0.00% | H7: 0 | I7: 0 | J7: 0 | K7: =+J7-PTU!F11 -> 0 | L7: =+IF((K7-PTU!E11)<1,0,(K7-PTU!E11)) -> 0 | M7: 0 | N7: 0 | P7: 12,935.83 | Q7: 15,487.71 | R7: 1,182.88 | S7: 17.92%
A8: =+PTU!B12 -> TRABAJADOR 7 | B8: =+PTU!Y12 -> 0 | C8: 0 | D8: =+PTU!D12+C8 -> 0 | E8: 0 | F8: 0 | G8: 0.00% | H8: 0 | I8: 0 | J8: 0 | K8: =+J8-PTU!F12 -> 0 | L8: =+IF((K8-PTU!E12)<1,0,(K8-PTU!E12)) -> 0 | M8: 0 | N8: 0 | P8: 15,487.72 | Q8: 31,236.49 | R8: 1,640.18 | S8: 21.36%
A9: =+PTU!B13 -> TRABAJADOR 8 | B9: =+PTU!Y13 -> 0 | C9: 0 | D9: =+PTU!D13+C9 -> 0 | E9: 0 | F9: 0 | G9: 0.00% | H9: 0 | I9: 0 | J9: 0 | K9: =+J9-PTU!F13 -> 0 | L9: =+IF((K9-PTU!E13)<1,0,(K9-PTU!E13)) -> 0 | M9: 0 | N9: 0 | P9: 31,236.50 | Q9: 49,233.00 | R9: 5,004.12 | S9: 23.52%
A10: =+PTU!B14 -> TRABAJADOR 9 | B10: =+PTU!Y14 -> 0 | C10: 0 | D10: =+PTU!D14+C10 -> 0 | E10: 0 | F10: 0 | G10: 0.00% | H10: 0 | I10: 0 | J10: 0 | K10: =+J10-PTU!F14 -> 0 | L10: =+IF((K10-PTU!E14)<1,0,(K10-PTU!E14)) -> 0 | M10: 0 | N10: 0 | P10: 49,233.01 | Q10: 93,993.90 | R10: 9,236.89 | S10: 30.00%
A11: =+PTU!B15 -> TRABAJADOR 10 | B11: =+PTU!Y15 -> 0 | C11: 0 | D11: =+PTU!D15+C11 -> 0 | E11: 0 | F11: 0 | G11: 0.00% | H11: 0 | I11: 0 | J11: 0 | K11: =+J11-PTU!F15 -> 0 | L11: =+IF((K11-PTU!E15)<1,0,(K11-PTU!E15)) -> 0 | M11: 0 | N11: 0 | P11: 93,993.91 | Q11: 125,325.20 | R11: 22,665.17 | S11: 32.00%
A12: =+PTU!B16 -> TRABAJADOR 11 | B12: =+PTU!Y16 -> 0 | C12: 0 | D12: =+PTU!D16+C12 -> 0 | E12: 0 | F12: 0 | G12: 0.00% | H12: 0 | I12: 0 | J12: 0 | K12: =+J12-PTU!F16 -> 0 | L12: =+IF((K12-PTU!E16)<1,0,(K12-PTU!E16)) -> 0 | M12: 0 | N12: 0 | P12: 125,325.21 | Q12: 375,975.61 | R12: 32,691.18 | S12: 34.00%
A13: =+PTU!B17 -> TRABAJADOR 12 | B13: =+PTU!Y17 -> 0 | C13: 0 | D13: =+PTU!D17+C13 -> 0 | E13: 0 | F13: 0 | G13: 0.00% | H13: 0 | I13: 0 | J13: 0 | K13: =+J13-PTU!F17 -> 0 | L13: =+IF((K13-PTU!E17)<1,0,(K13-PTU!E17)) -> 0 | M13: 0 | N13: 0 | P13: 375,975.62 | Q13: En adelante | R13: 117,912.32 | S13: 35.00%
A14: =+PTU!B18 -> TRABAJADOR 13 | B14: =+PTU!Y18 -> 0 | C14: 0 | D14: =+PTU!D18+C14 -> 0 | E14: 0 | F14: 0 | G14: 0.00% | H14: 0 | I14: 0 | J14: 0 | K14: =+J14-PTU!F18 -> 0 | L14: =+IF((K14-PTU!E18)<1,0,(K14-PTU!E18)) -> 0 | M14: 0 | N14: 0
A15: =+PTU!B19 -> TRABAJADOR 14 | B15: =+PTU!Y19 -> 0 | C15: 0 | D15: =+PTU!D19+C15 -> 0 | E15: 0 | F15: 0 | G15: 0.00% | H15: 0 | I15: 0 | J15: 0 | K15: =+J15-PTU!F19 -> 0 | L15: =+IF((K15-PTU!E19)<1,0,(K15-PTU!E19)) -> 0 | M15: 0 | N15: 0
A16: =+PTU!B20 -> TRABAJADOR 15 | B16: =+PTU!Y20 -> 0 | C16: 0 | D16: =+PTU!D20+C16 -> 0 | E16: 0 | F16: 0 | G16: 0.00% | H16: 0 | I16: 0 | J16: 0 | K16: =+J16-PTU!F20 -> 0 | L16: =+IF((K16-PTU!E20)<1,0,(K16-PTU!E20)) -> 0 | M16: 0 | N16: 0
A17: =+PTU!B21 -> TRABAJADOR 16 | B17: =+PTU!Y21 -> 0 | C17: 0 | D17: =+PTU!D21+C17 -> 0 | E17: 0 | F17: 0 | G17: 0.00% | H17: 0 | I17: 0 | J17: 0 | K17: =+J17-PTU!F21 -> 0 | L17: =+IF((K17-PTU!E21)<1,0,(K17-PTU!E21)) -> 0 | M17: 0 | N17: 0
A18: =+PTU!B22 -> TRABAJADOR 17 | B18: =+PTU!Y22 -> 0 | C18: 0 | D18: =+PTU!D22+C18 -> 0 | E18: 0 | F18: 0 | G18: 0.00% | H18: 0 | I18: 0 | J18: 0 | K18: =+J18-PTU!F22 -> 0 | L18: =+IF((K18-PTU!E22)<1,0,(K18-PTU!E22)) -> 0 | M18: 0 | N18: 0
A19: =+PTU!B23 -> TRABAJADOR 18 | B19: =+PTU!Y23 -> 0 | C19: 0 | D19: =+PTU!D23+C19 -> 0 | E19: 0 | F19: 0 | G19: 0.00% | H19: 0 | I19: 0 | J19: 0 | K19: =+J19-PTU!F23 -> 0 | L19: =+IF((K19-PTU!E23)<1,0,(K19-PTU!E23)) -> 0 | M19: 0 | N19: 0
A20: =+PTU!B24 -> TRABAJADOR 19 | B20: =+PTU!Y24 -> 0 | C20: 0 | D20: =+PTU!D24+C20 -> 0 | E20: 0 | F20: 0 | G20: 0.00% | H20: 0 | I20: 0 | J20: 0 | K20: =+J20-PTU!F24 -> 0 | L20: =+IF((K20-PTU!E24)<1,0,(K20-PTU!E24)) -> 0 | M20: 0 | N20: 0
A21: =+PTU!B25 -> TRABAJADOR 20 | B21: =+PTU!Y25 -> 0 | C21: 0 | D21: =+PTU!D25+C21 -> 0 | E21: 0 | F21: 0 | G21: 0.00% | H21: 0 | I21: 0 | J21: 0 | K21: =+J21-PTU!F25 -> 0 | L21: =+IF((K21-PTU!E25)<1,0,(K21-PTU!E25)) -> 0 | M21: 0 | N21: =+IF(K21>0,B21*M21,0) -> 0
A22: =+PTU!B26 -> TRABAJADOR 21 | B22: =+PTU!Y26 -> 0 | C22: 0 | D22: =+PTU!D26+C22 -> 0 | E22: 0 | F22: 0 | G22: 0.00% | H22: 0 | I22: 0 | J22: 0 | K22: =+J22-PTU!F26 -> 0 | L22: =+IF((K22-PTU!E26)<1,0,(K22-PTU!E26)) -> 0 | M22: 0 | N22: =+IF(K22>0,B22*M22,0) -> 0
A23: =+PTU!B27 -> TRABAJADOR 22 | B23: =+PTU!Y27 -> 0 | C23: 0 | D23: =+PTU!D27+C23 -> 0 | E23: 0 | F23: 0 | G23: 0.00% | H23: 0 | I23: 0 | J23: 0 | K23: =+J23-PTU!F27 -> 0 | L23: =+IF((K23-PTU!E27)<1,0,(K23-PTU!E27)) -> 0 | M23: 0 | N23: =+IF(K23>0,B23*M23,0) -> 0
A24: =+PTU!B28 -> TRABAJADOR 23 | B24: =+PTU!Y28 -> 0 | C24: 0 | D24: =+PTU!D28+C24 -> 0 | E24: 0 | F24: 0 | G24: 0.00% | H24: 0 | I24: 0 | J24: 0 | K24: =+J24-PTU!F28 -> 0 | L24: =+IF((K24-PTU!E28)<1,0,(K24-PTU!E28)) -> 0 | M24: 0 | N24: =IF(K24>0,(B24*M24),0) -> 0
A25: =+PTU!B29 -> TRABAJADOR 24 | B25: =+PTU!Y29 -> 0 | C25: 0 | D25: =+PTU!D29+C25 -> 0 | E25: 0 | F25: 0 | G25: 0.00% | H25: 0 | I25: 0 | J25: 0 | K25: =+J25-PTU!F29 -> 0 | L25: =+IF((K25-PTU!E29)<1,0,(K25-PTU!E29)) -> 0 | M25: 0 | N25: 0
A26: =+PTU!B30 -> TRABAJADOR 25 | B26: =+PTU!Y30 -> 0 | C26: 0 | D26: =+PTU!D30+C26 -> 0 | E26: 0 | F26: 0 | G26: 0.00% | H26: 0 | I26: 0 | J26: 0 | K26: =+J26-PTU!F30 -> 0 | L26: =+IF((K26-PTU!E30)<1,0,(K26-PTU!E30)) -> 0 | M26: 0 | N26: 0
A27: =+PTU!B31 -> TRABAJADOR 26 | B27: =+PTU!Y31 -> 0 | C27: 0 | D27: =+PTU!D31+C27 -> 0 | E27: 0 | F27: =+D27-E27 -> 0 | G27: 0.00% | H27: 0 | I27: 0 | J27: 0 | K27: =+J27-PTU!F31 -> 0 | L27: =+IF((K27-PTU!E31)<1,0,(K27-PTU!E31)) -> 0 | M27: 0 | N27: 0
A28: =+PTU!B32 -> TRABAJADOR 27 | B28: =+PTU!Y32 -> 0 | C28: 0 | D28: =+PTU!D32+C28 -> 0 | E28: 0 | F28: 0 | G28: 0.00% | H28: 0 | I28: 0 | J28: 0 | K28: =+J28-PTU!F32 -> 0 | L28: =+IF((K28-PTU!E32)<1,0,(K28-PTU!E32)) -> 0 | M28: 0 | N28: 0
A29: =+PTU!B33 -> TRABAJADOR 28 | B29: =+PTU!Y33 -> 0 | C29: 0 | D29: =+PTU!D33+C29 -> 0 | E29: 0 | F29: 0 | G29: 0.00% | H29: 0 | I29: 0 | J29: 0 | K29: =+J29-PTU!F33 -> 0 | L29: =+IF((K29-PTU!E33)<1,0,(K29-PTU!E33)) -> 0 | M29: 0 | N29: 0
A30: =+PTU!B34 -> TRABAJADOR 29 | B30: =+PTU!Y34 -> 0 | C30: 0 | D30: =+PTU!D34+C30 -> 0 | E30: 0 | F30: 0 | G30: 0.00% | H30: 0 | I30: 0 | J30: 0 | K30: =+J30-PTU!F34 -> 0 | L30: =+IF((K30-PTU!E34)<1,0,(K30-PTU!E34)) -> 0 | M30: 0 | N30: 0
A31: =+PTU!B35 -> TRABAJADOR 30 | B31: =+PTU!Y35 -> 0 | C31: 0 | D31: =+PTU!D35+C31 -> 0 | E31: 0 | F31: 0 | G31: 0.00% | H31: 0 | I31: 0 | J31: 0 | K31: =+J31-PTU!F35 -> 0 | L31: =+IF((K31-PTU!E35)<1,0,(K31-PTU!E35)) -> 0 | M31: 0 | N31: 0
